{"text_format":"1","workbook":"xlsx","n_sheets":3,"sheets":["sheet1","システム管理","システム管理2"],"not_rendered":{"charts":0,"images":0,"macros":1,"external_links":0,"defined_names":1,"comments":0,"pivot_tables":0},"unopened":[],"bounds":{"document_bytes":16777216,"sheet_cells":100000,"rows_first":2000,"rows_last":500,"rows_between":2000,"halvings":0,"cell_chars":16384,"cell_head_chars":4096},"cells_cut":0,"cells_raw":0,"read":"whole","date_system":"1900"}

{"sheet":"sheet1","index":0,"n_rows":61,"n_cols":59,"rows_kept":61,"cut":false,"hidden":false,"merged":[[60,1,67,20],[43,1,43,20],[38,1,38,10],[39,1,39,10],[56,19,56,20],[46,1,46,20],[49,1,49,20],[55,1,55,20],[52,1,52,20],[39,17,39,19],[39,13,39,15],[34,1,34,10],[34,13,34,15],[34,17,34,19],[35,13,35,15],[43,21,43,22],[34,21,39,22],[36,13,36,15],[37,13,37,15],[23,26,23,28],[5,4,5,7],[5,21,6,22],[5,0,5,1],[5,17,5,20],[12,1,12,20],[19,25,19,30],[9,1,9,20],[8,1,8,20],[15,1,15,20],[19,1,19,20],[23,5,23,9],[23,12,23,16],[21,1,21,20],[22,0,22,2],[22,3,22,20],[0,13,0,15],[35,17,35,19],[36,17,36,19],[37,17,37,19],[38,17,38,19],[23,17,23,18],[38,13,38,15],[30,1,30,20],[14,1,14,20],[35,1,35,10],[36,1,36,10],[37,1,37,10],[23,0,23,2],[23,3,23,4],[33,1,33,7],[33,13,33,14]]}
[null,null,null,null,null,null,null,null,null,null,null,"西暦",null,null,null,null,"年",null,"月",null,"日"]
[]
[null,"面 談 メ モ "]
[null,"〔面談メモ専用メールアドレスmendan@scholarship.or.jpに当Excelファイルを添付し"]
[null,"提出してください。メールの件名は「面談　あなたの大学名　あなたの氏名」としてください。〕",null,null,null,null,null,null,null,null,null,null,null,null,null,null,null,null,null,null,null,null,null,null,null,"入力方法",null,null,null,null,null,null,null,null,null,null,null,null,null,null,null,"保管するフォルダー名","フォルダー名参照テーブル"]
[null,null,"大学 大学院",null,null,null,null,null,"研究科",null,null,"課程",null,null,"年",null,"氏名",null,null,null,null,"注意：大学名、課程はプルダウンで選択してください。\n",null,{"$f":"IF(ISBLANK(A6),\"●大学名を入力して下さい\",IF(ISBLANK(E6),\"●研究科を入力してください\",IF(NOT(ISNUMBER(K6)),\"●学年を入力して下さい\",IF(ISBLANK(O6),\"●氏名を入力して下さい\",\"OK\"))))","v":"●大学名を入力して下さい"},null,"手入力",null,null,null,null,null,null,null,null,null,null,null,null,null,null,null,"01　青山学院大学","青山学院大学",{"$f":"SUBSTITUTE(AS6,\"大学\",\"\")","v":"01　青山学院"},"01　青山学院大学",null,1,null,"修士"]
[null,null,null,null,null,null,null,null,null,null,null,null,null,null,null,null,null,null,null,null,null,null,null,null,null,"面談メモから式で参照",null,null,null,null,null,null,null,null,null,null,null,null,null,null,null,null,"岩手大学",{"$f":"SUBSTITUTE(AS7,\"大学\",\"\")","v":"02　岩手"},"02　岩手大学",null,2,null,"博士"]
["① ","あなたの専門の研究テーマについて簡潔に分かりやすく記述して下さい。",null,null,null,null,null,null,null,null,null,null,null,null,null,null,null,null,null,null,null,null,null,null,null,"ドロップダウンメニュー",null,null,null,null,null,null,null,null,null,null,null,null,null,null,null,null,"小樽商科大学","03　大阪","03　大阪大学",null,3,null,"専門"]
[null,"（注：以下への入力で改行する場合、Windows を使用の場合は \"Alt + Enter\" を、Mackintosh を使用の場合はCommand + Option + Return キーを押してください。 ）",null,null,null,null,null,null,null,null,null,null,null,null,null,null,null,null,null,null,null,null,null,null,null,null,null,null,null,null,null,"入力文字数","元の行数","元の高さ","行あたり高さ","行あたり文字数","あふれ文字数","追加行数","追加高さ","結果高さ",null,null,"香川大学","04　岡山","04　岡山大学",null,4]
[null,null,null,null,null,null,null,null,null,null,null,null,null,null,null,null,null,null,null,null,null,null,null,null,null,null,null,null,null,null,null,{"$f":"LEN(B10)","v":0},11,{"$f":"+AI10*AG10","v":156.75},14.25,40,{"$f":"AF10-AJ10*AG10","v":-440},{"$f":"ROUNDUP(IF((+AK10/AJ10)<=0,0,AK10/AJ10),)","v":0},{"$f":"ROUNDUP(+AI10*AL10,)","v":0},{"$f":"+AH10+AM10+10","v":166.75},null,null,"学習院大学","05　小樽商科","05　小樽商科大学",null,5]
[null,null,null,null,null,null,null,null,null,null,null,null,null,null,null,null,null,null,null,null,null,null,null,null,null,null,null,null,null,null,null,null,null,null,null,null,null,null,null,10,null,null,"鹿児島大学","06　香川","06　香川大学",null,6]
["②","１週間、曜日毎の時間の使い方について記述して下さい。",null,null,null,null,null,null,null,null,null,null,null,null,null,null,null,null,null,null,null,null,null,null,null,null,null,null,null,null,null,null,null,null,null,null,null,null,null,21,null,null,"金沢大学","07　学習院","07　学習院大学",null,7]
[null,null,null,null,null,null,null,null,null,null,null,null,null,null,null,null,null,null,null,null,null,null,null,null,null,null,null,null,null,null,null,{"$f":"LEN(B13)","v":0},4,58.5,14.25,40,{"$f":"AF13-AJ13*AG13","v":-160},{"$f":"ROUNDUP(IF((+AK13/AJ13)<=0,0,AK13/AJ13),)","v":0},{"$f":"ROUNDUP(+AI13*AL13,)","v":0},{"$f":"+AH13+AM13+10","v":68.5},null,null,"関西大学","08　鹿児島","08　鹿児島大学",null,8]
[null,null,null,null,null,null,null,null,null,null,null,null,null,null,null,null,null,null,null,null,null,null,null,null,null,null,null,null,null,null,null,null,null,null,null,null,null,null,null,16,null,null,"金沢大学","09　金沢","09　金沢大学",null,9]
["③","将来の進路について。（具体的にお書き下さい。就職（業種・企業名等）、進学・留学（大学院名等）、その他）",null,null,null,null,null,null,null,null,null,null,null,null,null,null,null,null,null,null,null,null,null,null,null,"進路（2つまで記入）",null,null,null,null,null,null,null,null,null,null,null,null,null,21,null,null,"九州大学","10　関西","10　関西大学",null,10]
[null,null,null,null,null,null,null,null,null,null,null,null,null,null,null,null,null,null,null,null,null,null,null,null,null,null,null,null,null,null,null,{"$f":"LEN(B16)","v":0},3,{"$f":"+AI16*AG16","v":42.75},14.25,40,{"$f":"AF16-AJ16*AG16","v":-120},{"$f":"ROUNDUP(IF((+AK16/AJ16)<=0,0,AK16/AJ16),)","v":0},{"$f":"ROUNDUP(+AI16*AL16,)","v":0},{"$f":"+AH16+AM16+10","v":52.75},null,null,"慶應義塾大学","11　関西学院","11　関西学院大学",null,11]
[null,null,null,null,null,null,null,null,null,null,null,null,null,null,null,null,null,null,null,null,null,null,null,null,null,null,null,null,null,null,null,null,null,null,null,null,null,null,null,14.25,null,null,"工学院大学","12　九州","12　九州大学",null,12]
[null,null,null,null,null,null,null,null,null,null,null,null,null,null,null,null,null,null,null,null,null,null,null,null,null,null,null,null,null,null,null,null,null,null,null,null,null,null,null,10,null,null,"神戸大学","13　京都","13　京都大学",null,13]
["④","あなたの座右の銘・生活信条について記述して下さい。",null,null,null,null,null,null,null,null,null,null,null,null,null,null,null,null,null,null,null,null,null,null,null,"座右の銘",null,null,null,null,null,null,null,null,null,null,null,null,null,21,null,null,"国際大学","14　慶應義塾","14　慶應義塾大学",null,14]
[null,null,null,null,null,null,null,null,null,null,null,null,null,null,null,null,null,null,null,null,null,null,null,null,null,null,null,null,null,null,null,{"$f":"LEN(B20)","v":0},3,{"$f":"+AI20*AG20","v":42.75},14.25,40,{"$f":"AF20-AJ20*AG20","v":-120},{"$f":"ROUNDUP(IF((+AK20/AJ20)<=0,0,AK20/AJ20),)","v":0},{"$f":"ROUNDUP(+AI20*AL20,)","v":0},{"$f":"+AH20+AM20+10","v":52.75},null,null,"国際基督教大学","15　工学院","15　工学院大学",null,15]
[null,null,null,null,null,null,null,null,null,null,null,null,null,null,null,null,null,null,null,null,null,null,null,null,null,null,null,null,null,null,null,null,null,null,null,null,null,null,null,16,null,null,"静岡大学","16　神戸","16　神戸大学",null,16]
["⑤","何かアルバイトをしていますか。\n（複数ある場合、職種は全てを、回数、時間、月収は合計を記載して下さい。）",null,null,null,null,null,null,null,null,null,null,null,null,null,null,null,null,null,null,null,null,null,null,null,null,null,null,null,null,null,null,null,null,null,null,null,null,null,32.25,null,null,"上智大学","17　国際","17　国際大学",null,17]
["アルバイト職種：",null,null,null,null,null,null,null,null,null,null,null,null,null,null,null,null,null,null,null,null,null,null,null,null,"アルバイト職種","週回数","週時間","月収",null,null,{"$f":"LEN(B23)","v":0},null,null,null,null,null,null,null,23.25,null,null,"信州大学","18　国際基督教","18　国際基督教大学",null,18]
["一週間での回数：",null,null,null,null,"一週あたりの時間：",null,null,null,null,null,null,"平均的な月収：",null,null,null,null,null,null,"（万円）",null,null,null,null,null,"（複数回答可）","（複数の場合は合計）",null,null,null,null,{"$f":"LEN(B24)","v":0},null,null,null,null,null,null,null,23.25,null,null,"成蹊大学","19　静岡","19　静岡大学",null,19,null,null,"1.塾講師","2.家庭教師","3.飲食店員","4.店員","5.TA","6.その他","7.なし"]
[null,null,null,null,null,null,null,null,null,null,null,null,null,null,null,null,null,null,null,null,null,null,null,null,null,null,{"$f":"+D24","v":0},{"$f":"+K24","v":0},{"$f":"+R24","v":0},null,null,null,null,null,null,null,null,null,null,23.25,null,null,"西南学院大学","20　上智","20　上智大学",null,20,null,null,{"$f":"$Z$25&\"　\"&AX24","v":"　1.塾講師"},{"$f":"$Z$25&\"　\"&AY24","v":"　2.家庭教師"},"　3.飲食店員","　4.店員","　5.TA","　6.その他","　7.なし","　"]
[null,null,null,null,null,null,null,null,null,null,null,null,null,null,null,null,null,null,null,null,null,null,null,null,null,null,null,null,null,null,null,null,null,null,null,null,null,null,null,null,null,null,"創価大学","21　信州","21　信州大学",null,21]
[null,null,null,null,null,null,null,null,null,null,null,null,null,null,null,null,null,null,null,null,null,null,null,null,null,null,null,null,null,null,null,null,null,null,null,null,null,null,null,null,null,null,"千葉大学","22　成蹊","22　成蹊大学",null,22]
[null,null,null,null,null,null,null,null,null,null,null,null,null,null,null,null,null,null,null,null,null,null,null,null,null,null,null,null,null,null,null,null,null,null,null,null,null,null,null,null,null,null,"中央大学","23　西南学院","23　西南学院大学",null,23]
[null,null,null,null,null,null,null,null,null,null,null,null,null,null,null,null,null,null,null,null,null,null,null,null,null,null,null,null,null,null,null,null,null,null,null,null,null,null,null,16,null,null,"筑波大学","24　創価","24　創価大学",null,24]
["⑥","経済状況について記述して下さい。（主な収入源、収入と支出のバランスなど）",null,null,null,null,null,null,null,null,null,null,null,null,null,null,null,null,null,null,null,null,null,null,null,null,null,null,null,null,null,null,null,null,null,null,null,null,null,21,null,null,"東京大学","25　千葉","25　千葉大学",null,25]
[null,null,null,null,null,null,null,null,null,null,null,null,null,null,null,null,null,null,null,null,null,null,null,null,null,null,null,null,null,null,null,{"$f":"LEN(B31)","v":0},3,{"$f":"+AI31*AG31","v":42.75},14.25,40,{"$f":"AF31-AJ31*AG31","v":-120},{"$f":"ROUNDUP(IF((+AK31/AJ31)<=0,0,AK31/AJ31),)","v":0},{"$f":"ROUNDUP(+AI31*AL31,)","v":0},{"$f":"+AH31+AM31+10","v":52.75},null,null,"東京外国語大学","26　中央","26　中央大学",null,26]
[null,null,null,null,null,null,null,null,null,null,null,null,null,null,null,null,null,null,null,null,null,null,null,null,null,null,null,null,null,null,null,null,null,null,null,null,null,null,null,10,null,null,"東京工業大学","27　筑波","27　筑波大学",null,27]
["⑦","併給している奨学金、学費免除があれば、すべて記入してください。",null,null,null,null,null,null,null,null,null,null,null,null,null,null,null,null,null,null,null,null,null,null,null,null,null,null,null,null,null,null,null,null,null,null,null,null,null,21,null,null,"東京理科大学","28　東京","28　東京大学",null,28]
[null,"奨学金名称",null,null,null,null,null,null,null,null,null,null,null,"貸与/給付",null,null,null,"金額（万円/年）",null,null,null,null,null,null,null,null,null,null,null,null,null,null,null,null,null,null,null,null,null,21,null,null,"同志社大学","29　東京外国語","29　東京外国語大学",null,29]
[null,null,null,null,null,null,null,null,null,null,null,null,null,null,null,null,null,null,null,null,null,"奨学金名称、貸与/給付はプルダウンメニューから選択。奨学金名称はメニュー以外に手入力も可。",null,null,null,null,null,null,null,null,null,null,null,null,null,null,null,null,null,18,null,null,"東北大学","30　東京工業","30　東京工業大学",null,30]
[null,null,null,null,null,null,null,null,null,null,null,null,null,null,null,null,null,null,null,null,null,null,null,null,null,null,null,null,null,null,null,null,null,null,null,null,null,null,null,18,null,null,"獨協大学","31　東京理科","31　東京理科大学",null,31,null,null,"日本学生支援機構１種","日本学生支援機構２種","学費免除（前期）","学費免除（後期）"]
[null,null,null,null,null,null,null,null,null,null,null,null,null,null,null,null,null,null,null,null,null,null,null,null,null,null,null,null,null,null,null,null,null,null,null,null,null,null,null,18,null,null,"名古屋大学","32　同志社","32　同志社大学",null,32,null,null,"貸与","給付"]
[null,null,null,null,null,null,null,null,null,null,null,null,null,null,null,null,null,null,null,null,null,null,null,null,null,null,null,null,null,null,null,null,null,null,null,null,null,null,null,18,null,null,"南山大学","33　東北","33　東北大学",null,33]
[null,null,null,null,null,null,null,null,null,null,null,null,null,null,null,null,null,null,null,null,null,null,null,null,null,null,null,null,null,null,null,null,null,null,null,null,null,null,null,18,null,null,"一橋大学","34　獨協","34　獨協大学",null,34]
[null,null,null,null,null,null,null,null,null,null,null,null,null,null,null,null,null,null,null,null,null,null,null,null,null,null,null,null,null,null,null,null,null,null,null,null,null,null,null,18,null,null,"広島大学","35　長崎","35　長崎大学",null,35]
[null,null,null,null,null,null,null,null,null,null,null,null,null,null,null,null,null,null,null,null,null,null,null,null,null,null,null,null,null,null,null,null,null,null,null,null,null,null,null,5,null,null,"福島大学","36　名古屋","36　名古屋大学",null,36]
[null,null,null,null,null,null,null,null,null,null,null,null,null,null,null,null,null,null,null,null,null,null,null,null,null,null,null,null,null,null,null,null,null,null,null,null,null,null,null,5,null,null,"法政大学","37　南山","37　南山大学",null,37]
["⑧","三菱UFJ信託銀行についてご存知の事を記載して下さい。",null,null,null,null,null,null,null,null,null,null,null,null,null,null,null,null,null,null,null,null,null,null,null,"MUTBについて？",null,null,null,null,null,null,null,null,null,null,null,null,null,21,null,null,"北海道大学","38　一橋","38　一橋大学",null,38]
[null,null,null,null,null,null,null,null,null,null,null,null,null,null,null,null,null,null,null,null,null,"全く知らない場合は同行のHPなどをご覧ください。",null,null,null,null,null,null,null,null,null,{"$f":"LEN(B44)","v":0},3,{"$f":"+AI44*AG44","v":42.75},14.25,40,{"$f":"AF44-AJ44*AG44","v":-120},{"$f":"ROUNDUP(IF((+AK44/AJ44)<=0,0,AK44/AJ44),)","v":0},{"$f":"ROUNDUP(+AI44*AL44,)","v":0},{"$f":"+AH44+AM44+10","v":52.75},null,null,"明治大学","39　広島","39　広島大学",null,39,null,null,"0.無回答","1.BOTMと誤認","2.少し知っている","3.知っている","4.よく知っている"]
[null,null,null,null,null,null,null,null,null,null,null,null,null,null,null,null,null,null,null,null,null,null,null,null,null,null,null,null,null,null,null,null,null,null,null,null,null,null,null,14.25,null,null,"山梨大学","40　福島","40　福島大学",null,40]
["⑨","最近、気になるニュースは何ですか。それはなぜですか。",null,null,null,null,null,null,null,null,null,null,null,null,null,null,null,null,null,null,null,null,null,null,null,"気になるニュース？",null,null,null,null,null,null,null,null,null,null,null,null,null,21,null,null,"横浜国立大学","41　法政","41　法政大学",null,41]
[null,null,null,null,null,null,null,null,null,null,null,null,null,null,null,null,null,null,null,null,null,null,null,null,null,null,null,null,null,null,null,{"$f":"LEN(B47)","v":0},3,{"$f":"+AI47*AG47","v":42.75},14.25,40,{"$f":"AF47-AJ47*AG47","v":-120},{"$f":"ROUNDUP(IF((+AK47/AJ47)<=0,0,AK47/AJ47),)","v":0},{"$f":"ROUNDUP(+AI47*AL47,)","v":0},{"$f":"+AH47+AM47+10","v":52.75},null,null,"立教大学","42　北海道","42　北海道大学",null,42,null,null,"1.政治","2.経済","3.社会","4.安全保障","5.大阪都構想","6.自然災害","7","8.","9","10.その他"]
[null,null,null,null,null,null,null,null,null,null,null,null,null,null,null,null,null,null,null,null,null,null,null,null,null,null,null,null,null,null,null,null,null,null,null,null,null,null,null,10,null,null,"立命館大学","43　明治","43　明治大学",null,43]
["⑩","趣味・余暇などについてお書きください。",null,null,null,null,null,null,null,null,null,null,null,null,null,null,null,null,null,null,null,null,null,null,null,null,null,null,null,null,null,null,null,null,null,null,null,null,null,21,null,null,"早稲田大学","44　山梨","44　山梨大学",null,44]
[null,null,null,null,null,null,null,null,null,null,null,null,null,null,null,null,null,null,null,null,null,null,null,null,null,null,null,null,null,null,null,{"$f":"LEN(B50)","v":0},3,{"$f":"+AI50*AG50","v":42.75},14.25,40,{"$f":"AF50-AJ50*AG50","v":-120},{"$f":"ROUNDUP(IF((+AK50/AJ50)<=0,0,AK50/AJ50),)","v":0},{"$f":"ROUNDUP(+AI50*AL50,)","v":0},{"$f":"+AH50+AM50+10","v":52.75},null,null,null,"45　横浜国立","45　横浜国立大学",null,45]
[null,null,null,null,null,null,null,null,null,null,null,null,null,null,null,null,null,null,null,null,null,null,null,null,null,null,null,null,null,null,null,null,null,null,null,null,null,null,null,10,null,null,null,"46　立教","46　立教大学",null,46]
["⑪","近況又は意見、抱負等ご自由にお書き下さい。",null,null,null,null,null,null,null,null,null,null,null,null,null,null,null,null,null,null,null,null,null,null,null,null,null,null,null,null,null,null,null,null,null,null,null,null,null,21,null,null,null,"47　立命館","47　立命館大学",null,47]
[null,null,null,null,null,null,null,null,null,null,null,null,null,null,null,null,null,null,null,null,null,null,null,null,null,null,null,null,null,null,null,{"$f":"LEN(B53)","v":0},20,160,14.25,40,{"$f":"AF53-AJ53*AG53","v":-800},{"$f":"ROUNDUP(IF((+AK53/AJ53)<=0,0,AK53/AJ53),)","v":0},{"$f":"ROUNDUP(+AI53*AL53,)","v":0},{"$f":"+AH53+AM53+10","v":170},null,null,null,"48　早稲田","48　早稲田大学",null,48]
[null,null,null,null,null,null,null,null,null,null,null,null,null,null,null,null,null,null,null,null,null,null,null,null,null,null,null,null,null,null,null,null,null,null,null,null,null,null,null,10]
["⑫","何か質問や相談したいことがあればお書き下さい。",null,null,null,null,null,null,null,null,null,null,null,null,null,null,null,null,null,null,null,null,null,null,null,null,null,null,null,null,null,null,null,null,null,null,null,null,null,21]
[null,null,null,null,null,null,null,null,null,null,null,null,null,null,null,null,null,null,null,null,null,null,null,null,null,null,null,null,null,null,null,{"$f":"LEN(B56)","v":0},9,42.75,14.25,40,{"$f":"AF56-AJ56*AG56","v":-360},{"$f":"ROUNDUP(IF((+AK56/AJ56)<=0,0,AK56/AJ56),)","v":0},{"$f":"ROUNDUP(+AI56*AL56,)","v":0},{"$f":"+AH56+AM56+10","v":52.75}]
[null,null,null,null,null,null,null,null,null,null,null,null,null,null,null,null,null,null,null,"以上",null,null,null,null,null,null,null,null,null,null,null,null,null,null,null,null,null,null,null,18]
[]
[]
[null,"SMILE入力文"]
[null,{"$f":"\"卒業後は\"&B16&\"を希望。\"&\n+IF(OR(D23=0,D23=\"\"),\"アルバイトなし。\",\"アルバイトは\"&D23&\"。週\"&D24&\"回、一回\"&K24&\"時間、月収\"&R57&\"万円。\")&\n\"面談メモの自由意見は「\"&B53&\"」\"","v":"卒業後はを希望。アルバイトなし。面談メモの自由意見は「」"}]

{"sheet":"システム管理","index":1,"n_rows":4,"n_cols":3,"rows_kept":4,"cut":false,"hidden":true,"merged":[]}
["ディレクトリ名：\n（事前に手作成しておく）","\\\\Ridoc-srv\\マイドキュメント\\１１．面談\\面談2024\\面談資料　大学別(2024)"]
["大学フォルダ名：",{"$f":"+sheet1!A6&\"大学\"","v":"大学"}]
[".",{"$f":"sheet1!A6&\"大学\"&\"　面談メモ（2024)\"","v":"大学　面談メモ（2024)"},"保存するEXCELファイル名は大学の後に”面談メモ（H29)を連結した名前。年度により更新する。"]
["シート名",{"$f":"+sheet1!R6","v":0},"シート名は氏名"]

{"sheet":"システム管理2","index":2,"n_rows":4,"n_cols":44,"rows_kept":4,"cut":false,"hidden":true,"merged":[[2,2,2,7],[3,10,3,11]]}
["ディレクトリ名：\n（事前に手作成しておく）","\\\\Ridoc-srv\\マイドキュメント\\１１．面談\\面談2024",null,null,null,null,null,null,"大学","学部","学年","氏名","部活・サークル","部活・サークル分類","座右の銘・生活信条","進路志望1","進路志望2","留学希望","進学希望","取得希望資格1","取得希望資格2","MUTB","奨学金使途","気になるニュース","アルバイト","アルバイト週回数","アルバイト週時間","アルバイト月収（万円/月）","留学希望国","併給奨学金名１","併給貸与給付1","併給奨学金金額1","併給奨学金名2","併給貸与給付2","併給金額2","併給奨学金名3","併給貸与給付3","併給金額3","併給奨学金名4","併給貸与給付4","併給金額4","併給奨学金名5","併給貸与給付5","併給金額5"]
["EXCELファイル名：","★面談メモデータ2024",null,null,null,null,null,"書き込みデータ",{"$f":"+sheet1!A6","v":0},{"$f":"+sheet1!E6","v":0},{"$f":"+sheet1!K6&+sheet1!N6","v":""},{"$f":"+sheet1!R6","v":0},null,null,{"$f":"+sheet1!Z20","v":0},{"$f":"+sheet1!Z16","v":0},{"$f":"+sheet1!AA16","v":0},null,null,null,null,{"$f":"+sheet1!Z44","v":0},null,{"$f":"sheet1!Z47 & \"　\"&sheet1!AA47","v":"　"},{"$f":"+sheet1!Z25","v":0},{"$f":"+sheet1!AA25","v":0},{"$f":"+sheet1!K24","v":0},{"$f":"+sheet1!R24","v":0},null,{"$f":"+sheet1!B36","v":0},{"$f":"+sheet1!N36","v":0},{"$f":"+sheet1!R36","v":0},{"$f":"+sheet1!B37","v":0},{"$f":"+sheet1!N37","v":0},{"$f":"+sheet1!R37","v":0},{"$f":"+sheet1!B38","v":0},{"$f":"+sheet1!N38","v":0},{"$f":"+sheet1!R38","v":0},{"$f":"+sheet1!B39","v":0},{"$f":"+sheet1!N39","v":0},{"$f":"+sheet1!R39","v":0},{"$f":"+sheet1!B40","v":0},{"$f":"+sheet1!N40","v":0},{"$f":"+sheet1!R40","v":0}]
[]
[null,null,null,null,null,null,null,null,"書き込み対象データ",null,"データなし（学部生のみデータ）"]